[Event "150 Years SG Braunschweig"]
[Site "Brunswick"]
[Date "2019.10.25"]
[Round "8.5"]
[White "Pajeken, Jakob Leon"]
[Black "Buckels, Valentin"]
[Result "1-0"]
[ECO "D30"]
[WhiteElo "2323"]
[BlackElo "2442"]
[Annotator "ChessBase"]
[PlyCount "59"]
[EventDate "2019.10.21"]
[EventType "tourn"]
[EventCountry "GER"]
[SourceTitle "playchess.com"]
[Source "ChessBase"]
[SourceQuality "1"]
[TimeControl "40/5400+30:900+30"]

1. d4 {[%emt 0:00:00]} d5 {[%emt 0:00:00]} 2. c4 {[%emt 0:00:00]} e6 {[%emt 0:00:00]} 3. Nf3 {[%emt 0:00:00]} Nf6 {[%emt 0:00:02]} 4. e3 {[%emt 0:00:06]} a6 {[%emt 0:00:34]} 5. Nc3 {[%emt 0:00:08]} b6 {[%emt 0:00:26]} 6. Bd3 {[%emt 0:01:04]} dxc4 {[%emt 0:00:53]} 7. Bxc4 {[%emt 0:00:09]} Bb7 {[%emt 0:00:26]} 8. O-O {[%emt 0:00:54]} Nbd7 {[%emt 0:00:58]} 9. a4 {[%emt 0:07:14]} Bb4 {[%emt 0:04:40]} 10. Qe2 {[%emt 0:04:44]} O-O {[%emt 0:04:34]} 11. Bd3 {[%emt 0:04:03]} Qe7 {[%emt 0:05:32]} 12. e4 {[%emt 0:06:49]} e5 {[%emt 0:00:39]} 13. Nxe5 {[%emt 0:03:35]} Nxe5 {[%emt 0:01:34]} 14. dxe5 {[%emt 0:00:06]} Qxe5 {[%emt 0:13:24]} 15. f4 {[%emt 0:03:03]} Bc5+ {[%emt 0:02:03]} 16. Be3 {[%emt 0:07:06]} Bxe3+ {[%emt 0:00:27]} 17. Qxe3 {[%emt 0:00:04]} Ng4 {[%emt 0:00:21]} 18. Qg3 {[%emt 0:02:40]} Qd4+ {[%emt 0:00:42]} 19. Kh1 {[%emt 0:00:04]} f5 {[%emt 0:02:41]} 20. Rae1 {[%emt 0:03:59]} Rae8 {[%emt 0:07:48]} 21. Bb1 {[%emt 0:05:52]} Nf6 {[%emt 0:08:08]} 22. e5 {[%emt 0:03:35]} Ne4 {[%emt 0:02:05]} 23. Bxe4 {[%emt 0:08:35]} fxe4 {[%emt 0:00:50]} 24. Rd1 {[%emt 0:00:24]} Qc4 {[%emt 0:04:03]} 25. f5 {[%emt 0:01:05]} Kh8 {[%emt 0:13:27]} 26. e6 {[%emt 0:05:41]} e3 {[%emt 0:04:37]} 27. Rf4 {[%emt 0:02:57]} Qc5 {[%emt 0:08:56]} 28. Rd7 {[%emt 0:15:27]} Rg8 {[%emt 0:03:21]} 29. Qg6 {[%emt 0:01:34]} h6 {[%emt 0:05:22]} 30. Rh4 {[%emt 0:00:36]} 1-0

[Event "150 Years SG Braunschweig"]
[Site "Brunswick"]
[Date "2019.10.26"]
[Round "9.2"]
[White "Olsen, Filip Boe"]
[Black "Pajeken, Jakob Leon"]
[Result "1/2-1/2"]
[ECO "A20"]
[WhiteElo "2380"]
[BlackElo "2323"]
[Annotator "NA"]
[PlyCount "130"]
[EventDate "2019.10.21"]
[EventType "tourn"]
[EventCountry "GER"]
[SourceTitle "playchess.com"]
[Source "ChessBase"]
[SourceQuality "1"]
[TimeControl "40/5400+30:900+30"]

1. c4 {[%emt 0:00:00]} e5 {[%emt 0:00:00]} 2. g3 {[%emt 0:00:00]} c6 {[%emt 0:00:07]} 3. Bg2 {[%emt 0:02:11]} d5 {[%emt 0:00:10]} 4. cxd5 {[%emt 0:04:19]} cxd5 {[%emt 0:00:07]} 5. d4 {[%emt 0:01:01]} e4 {[%emt 0:01:12]} 6. Nc3 {[%emt 0:01:22] A20: English Opening: 1...e5} Nc6 {[%emt 0:03:28]} 7. f3 {[%emt 0:05:36]} exf3 {[%emt 0:05:08]} 8. Nxf3 {[%emt 0:00:20]} h6 {[%emt 0:09:49]} 9. O-O {[%emt 0:02:13]} Nf6 {[%emt 0:00:29]} 10. Bf4 $146 {[%emt 0:09:56]} ({Predecessor:} 10. Ne5) 10... Be7 {[%emt 0:10:24]} 11. Qd3 {[%emt 0:05:52]} O-O {[%emt 0:02:24]} 12. a3 {[%emt 0:01:45]} Be6 {[%emt 0:06:22]} 13. b4 {[%emt 0:02:07]} Rc8 {[%emt 0:03:06]} 14. Rac1 {[%emt 0:15:39]} Re8 {[%emt 0:05:50]} 15. Kh1 {[%emt 0:06:24]} Ne4 {[%emt 0:06:04]} (15... a5 $15) 16. Nxe4 {[%emt 0:03:24]} dxe4 {[%emt 0:00:04]} 17. Qxe4 {[%emt 0:00:23]} Bd5 {[%emt 0:00:17]} 18. Qd3 {[%emt 0:01:52]} Bf6 {[%emt 0:00:52]} 19. Rfd1 {[%emt 0:06:26]} Qe7 {[%emt 0:02:38]} 20. b5 {[%emt 0:05:42]} Bxf3 {[%emt 0:01:53]} 21. Qxf3 {[%emt 0:02:49]} Nxd4 {[%emt 0:00:23]} 22. Qxb7 {[%emt 0:01:51]} Rxc1 {[%emt 0:00:37]} 23. Rxc1 {[%emt 0:00:20]} Qxe2 {[%emt 0:00:48]} 24. Bd5 {[%emt 0:04:48]} Re7 {[%emt 0:01:27]} 25. Qc8+ {[%emt 0:01:20]} Kh7 {[%emt 0:00:29]} 26. Qc4 {[%emt 0:01:23]} Qh5 {[%emt 0:09:44]} 27. a4 {[%emt 0:03:56]} Ne2 {[%emt 0:05:28]} 28. Rf1 {[%emt 0:01:22]} Nxf4 {[%emt 0:00:58]} 29. Rxf4 {[%emt 0:00:55]} Re1+ {[%emt 0:05:49]} 30. Kg2 {[%emt 0:00:47]} Re2+ {[%emt 0:11:04]} 31. Kf1 {[%emt 0:00:48]} Rxh2 {[%emt 0:00:23]} 32. Qd3+ {[%emt 0:06:30]} Kg8 {[%emt 0:01:35]} 33. Bg2 {[%emt 0:01:32]} Qg5 {[%emt 0:02:53]} 34. Rc4 {[%emt 0:00:41]} (34. Qd7 $11 Qc5 35. Qc6) 34... g6 {[%emt 0:00:25]} 35. Rc8+ $2 {[%emt 0:00:54]} (35. Qd6 $17) 35... Kg7 {[%emt 0:00:45]} 36. Kg1 {[%emt 0:00:24]} Rh5 {[%emt 0:00:06]} 37. Qa3 {[%emt 0:01:01]} Be7 $2 {[%emt 0:00:56]} (37... Bd4+ $19 38. Kf1 Qf5+ {[%mdl 64] Double Attack} 39. Bf3 Rh1+ 40. Ke2 Rh2+ 41. Kd1 Qxc8) 38. Qc3+ {[%emt 0:00:12]} Qf6 {[%emt 0:00:54]} 39. Qxf6+ {[%emt 0:00:29]} Kxf6 {[%emt 0:00:03]} 40. Rc6+ {[%emt 0:00:32]} Ke5 {[%emt 0:02:11]} 41. Bf3 $15 {[%emt 0:05:29]} Rf5 {[%emt 0:02:11]} 42. Kg2 {[%emt 0:00:07]} Kd4 {[%emt 0:02:12]} 43. Rc7 {[%emt 0:00:34]} Bc5 {[%emt 0:01:02]} 44. a5 {[%emt 0:01:02]} Ke3 {[%emt 0:01:24]} 45. Bc6 {[%emt 0:02:18]} Rf2+ {[%emt 0:02:16]} 46. Kh3 {[%emt 0:01:17]} f5 {[%emt 0:03:21]} 47. Bg2 {[%emt 0:00:40]} Kd4 {[%emt 0:03:31]} 48. b6 {[%emt 0:02:56]} axb6 {[%emt 0:00:08]} 49. axb6 {[%emt 0:00:39]} Bxb6 {[%emt 0:00:41]} 50. Rc6 {[%emt 0:00:08]} Ba5 {[%emt 0:01:16]} 51. Rxg6 {[%emt 0:00:09]} Bd2 {[%emt 0:00:07]} 52. Re6 {[%emt 0:00:43]} Bg5 {[%emt 0:00:24]} 53. Ba8 {[%emt 0:01:23]} Ra2 {[%emt 0:00:20]} 54. Bg2 {[%emt 0:00:14]} Rb2 {[%emt 0:00:29]} 55. Rd6+ {[%emt 0:01:27]} Ke5 {[%emt 0:00:17]} 56. Rd5+ {[%emt 0:00:05]} Ke6 {[%emt 0:00:20]} 57. Ra5 {[%emt 0:00:14]} Rd2 {[%emt 0:00:17]} 58. Ra6+ {[%emt 0:00:16]} Ke5 {[%emt 0:00:29]} 59. Ra5+ {[%emt 0:00:10]} Ke6 {[%emt 0:00:15]} 60. Ra6+ {[%emt 0:00:04]} Ke7 {[%emt 0:00:10]} 61. Ra7+ {[%emt 0:00:12]} Kd6 {[%emt 0:00:11]} 62. Ra6+ {[%emt 0:00:12]} Kc7 {[%emt 0:00:15]} 63. Ra7+ {[%emt 0:00:33]} Kb6 {[%emt 0:00:08]} 64. Rf7 {[%emt 0:00:16]} Rf2 {[%emt 0:00:35]} 65. Be4 {[%emt 0:00:48]} f4 {[%emt 0:00:40]} 1/2-1/2

[Event "150 Years SG Braunschweig"]
[Site "Brunswick"]
[Date "2019.10.26"]
[Round "9.3"]
[White "Reuker, Jari"]
[Black "Ovsejevitsch, Sergei"]
[Result "0-1"]
[ECO "E12"]
[WhiteElo "2394"]
[BlackElo "2617"]
[Annotator "ChessBase"]
[PlyCount "74"]
[EventDate "2019.10.21"]
[EventType "tourn"]
[EventCountry "GER"]
[SourceTitle "playchess.com"]
[Source "ChessBase"]
[SourceQuality "1"]
[TimeControl "40/5400+30:900+30"]

1. d4 {[%emt 0:00:00]} Nf6 {[%emt 0:00:00]} 2. c4 {[%emt 0:00:00]} e6 {[%emt 0:00:00]} 3. g3 {[%emt 0:00:00]} d5 {[%emt 0:00:46]} 4. Nf3 {[%emt 0:00:04]} Be7 {[%emt 0:00:28]} 5. Bg2 {[%emt 0:00:06]} O-O {[%emt 0:00:09]} 6. Nc3 {[%emt 0:00:09]} b6 {[%emt 0:00:36]} 7. O-O {[%emt 0:02:42]} Bb7 {[%emt 0:00:18]} 8. cxd5 {[%emt 0:00:19]} exd5 {[%emt 0:00:31]} 9. Bf4 {[%emt 0:02:34]} Re8 {[%emt 0:01:28]} 10. Rc1 {[%emt 0:03:54]} Na6 {[%emt 0:01:56]} 11. Ne5 {[%emt 0:07:09]} h6 {[%emt 0:04:28]} 12. a3 {[%emt 0:09:09]} c5 {[%emt 0:04:49]} 13. Nb5 {[%emt 0:02:52]} Bf8 {[%emt 0:02:27]} 14. Qa4 {[%emt 0:06:51]} Qe7 {[%emt 0:05:51]} 15. Rfe1 {[%emt 0:05:50]} Ne4 {[%emt 0:16:08]} 16. Nd3 {[%emt 0:16:19]} Qd7 {[%emt 0:08:40]} 17. Ne5 {[%emt 0:08:49]} Rxe5 {[%emt 0:08:11]} 18. Bxe5 {[%emt 0:04:54]} Bc6 {[%emt 0:02:17]} 19. Bh3 {[%emt 0:00:56]} Qxh3 {[%emt 0:04:15]} 20. Qxa6 {[%emt 0:00:05]} f6 {[%emt 0:02:38]} 21. Bf4 {[%emt 0:02:41]} g5 {[%emt 0:02:10]} 22. Be3 {[%emt 0:09:38]} Qd7 {[%emt 0:01:40]} 23. Nxa7 {[%emt 0:00:33]} Rxa7 {[%emt 0:01:29]} 24. Qxb6 {[%emt 0:00:53]} c4 {[%emt 0:03:11]} 25. f3 {[%emt 0:01:01]} Rb7 {[%emt 0:02:21]} 26. Qa5 {[%emt 0:01:00]} Rb3 {[%emt 0:06:10]} 27. fxe4 {[%emt 0:06:30]} Rxe3 {[%emt 0:00:13]} 28. exd5 {[%emt 0:00:25]} Bxd5 {[%emt 0:01:19]} 29. Rc3 {[%emt 0:00:05]} Qe6 {[%emt 0:04:02]} 30. Kf2 {[%emt 0:02:35]} Qe4 {[%emt 0:02:18]} 31. Qxd5+ {[%emt 0:00:07]} Qxd5 {[%emt 0:00:06]} 32. Kxe3 {[%emt 0:00:06]} f5 {[%emt 0:00:28]} 33. Rd1 {[%emt 0:01:35]} Bg7 {[%emt 0:00:25]} 34. Kf2 {[%emt 0:00:25]} Bxd4+ {[%emt 0:02:25]} 35. e3 {[%emt 0:00:04]} Bxe3+ {[%emt 0:00:14]} 36. Ke2 {[%emt 0:00:18]} Bd4 {[%emt 0:00:09]} 37. Rcc1 {[%emt 0:00:17]} Qg2+ {[%emt 0:00:21]} 0-1

[Event "150 Years SG Braunschweig"]
[Site "Brunswick"]
[Date "2019.10.26"]
[Round "9.4"]
[White "Meshkovs, Nikita"]
[Black "Lubbe, Nikolas"]
[Result "0-1"]
[ECO "D35"]
[WhiteElo "2548"]
[BlackElo "2431"]
[Annotator "ChessBase"]
[PlyCount "130"]
[EventDate "2019.10.21"]
[EventType "tourn"]
[EventCountry "GER"]
[SourceTitle "playchess.com"]
[Source "ChessBase"]
[SourceQuality "1"]
[TimeControl "40/5400+30:900+30"]

1. c4 {[%emt 0:00:00]} e6 {[%emt 0:00:00]} 2. Nc3 {[%emt 0:00:32]} d5 {[%emt 0:00:07]} 3. d4 {[%emt 0:00:18]} Nf6 {[%emt 0:00:07]} 4. Bf4 {[%emt 0:01:30]} Be7 {[%emt 0:01:05]} 5. e3 {[%emt 0:00:25]} O-O {[%emt 0:00:42]} 6. a3 {[%emt 0:00:32]} b6 {[%emt 0:03:18]} 7. cxd5 {[%emt 0:02:00]} Nxd5 {[%emt 0:02:47]} 8. Nxd5 {[%emt 0:00:27]} Qxd5 {[%emt 0:01:01]} 9. Be2 {[%emt 0:02:45]} Bb7 {[%emt 0:08:49]} 10. Bf3 {[%emt 0:00:41]} Qa5+ {[%emt 0:00:15]} 11. Qd2 {[%emt 0:07:50]} Qa6 {[%emt 0:07:08]} 12. Bxc7 {[%emt 0:07:10]} Nc6 {[%emt 0:07:58]} 13. Rc1 {[%emt 0:01:33]} Rfc8 {[%emt 0:02:26]} 14. Rxc6 {[%emt 0:05:35]} Bxc6 {[%emt 0:06:29]} 15. Bxc6 {[%emt 0:00:13]} Rxc7 {[%emt 0:01:44]} 16. Bxa8 {[%emt 0:00:09]} Bb4 {[%emt 0:01:11]} 17. Qxb4 {[%emt 0:06:56]} Qd3 {[%emt 0:00:41]} 18. Qd2 {[%emt 0:18:15]} Qb1+ {[%emt 0:00:07]} 19. Ke2 {[%emt 0:04:14]} Rc2 {[%emt 0:00:03]} 20. Qxc2 {[%emt 0:10:15]} Qxc2+ {[%emt 0:00:17]} 21. Kf3 {[%emt 0:00:08]} Qf5+ {[%emt 0:06:53]} 22. Kg3 {[%emt 0:02:06]} Qg6+ {[%emt 0:01:21]} 23. Kf3 {[%emt 0:01:42]} f5 {[%emt 0:11:34]} 24. Ke2 {[%emt 0:02:28]} Qe8 {[%emt 0:00:09]} 25. Bf3 {[%emt 0:00:07]} Qb5+ {[%emt 0:00:05]} 26. Kd1 {[%emt 0:00:50]} Qf1+ {[%emt 0:04:45]} 27. Kd2 {[%emt 0:00:56]} g5 {[%emt 0:01:40]} 28. h4 {[%emt 0:03:55]} g4 {[%emt 0:01:22]} 29. Bb7 {[%emt 0:00:13]} Qb1 {[%emt 0:00:37]} 30. Kc3 {[%emt 0:06:53]} Qc1+ {[%emt 0:00:42]} 31. Kd3 {[%emt 0:00:17]} Qd1+ {[%emt 0:10:27]} 32. Kc3 {[%emt 0:00:09]} a5 {[%emt 0:00:24]} 33. a4 {[%emt 0:02:34]} Qc1+ {[%emt 0:03:17]} 34. Kd3 {[%emt 0:01:24]} b5 {[%emt 0:01:34]} 35. axb5 {[%emt 0:00:31]} Qf1+ {[%emt 0:00:38]} 36. Kc3 {[%emt 0:11:14]} Qxb5 {[%emt 0:00:16]} 37. Ba8 {[%emt 0:00:01]} Qa6 {[%emt 0:02:19]} 38. Bf3 {[%emt 0:00:07]} Qf1 {[%emt 0:00:49]} 39. Ba8 {[%emt 0:01:01]} Qxf2 {[%emt 0:00:13]} 40. Kd3 {[%emt 0:01:17]} Qf1+ {[%emt 0:00:29]} 41. Kd2 {[%emt 0:00:49]} Qb1 {[%emt 0:02:57]} 42. g3 {[%emt 0:02:08]} Qxb2+ {[%emt 0:00:46]} 43. Kd3 {[%emt 0:00:01]} Qb5+ {[%emt 0:01:50]} 44. Kd2 {[%emt 0:00:59]} Qb8 {[%emt 0:00:32]} 45. Bc6 {[%emt 0:01:09]} Qb2+ {[%emt 0:02:44]} 46. Kd3 {[%emt 0:00:44]} Qc1 {[%emt 0:00:54]} 47. Ne2 {[%emt 0:08:11]} Qxc6 {[%emt 0:00:07]} 48. Rc1 {[%emt 0:00:03]} Qa6+ {[%emt 0:01:25]} 49. Kd2 {[%emt 0:00:34]} a4 {[%emt 0:00:19]} 50. Ra1 {[%emt 0:00:30]} a3 {[%emt 0:03:36]} 51. Nc3 {[%emt 0:00:42]} Qb7 {[%emt 0:00:48]} 52. Kd3 {[%emt 0:00:46]} Qb3 {[%emt 0:00:13]} 53. Ra2 {[%emt 0:00:01]} Kf7 {[%emt 0:00:47]} 54. Kd2 {[%emt 0:00:57]} Kf6 {[%emt 0:03:18]} 55. Rc2 {[%emt 0:00:02]} h5 {[%emt 0:00:56]} 56. Kd3 {[%emt 0:00:22]} e5 {[%emt 0:01:12]} 57. dxe5+ {[%emt 0:00:44]} Kxe5 {[%emt 0:00:02]} 58. Rf2 {[%emt 0:00:11]} Ke6 {[%emt 0:01:13]} 59. Ra2 {[%emt 0:01:47]} Qb4 {[%emt 0:01:43]} 60. Kc2 {[%emt 0:03:27]} Kf7 {[%emt 0:01:25]} 61. Kd3 {[%emt 0:01:26]} Qd6+ {[%emt 0:00:21]} 62. Ke2 {[%emt 0:00:19]} Qxg3 {[%emt 0:00:51]} 63. Rxa3 {[%emt 0:00:01]} Qh2+ {[%emt 0:00:13]} 64. Ke1 {[%emt 0:00:55]} Qxh4+ {[%emt 0:01:07]} 65. Kd2 {[%emt 0:00:09]} Qh2+ {[%emt 0:00:07]} 0-1

[Event "150 Years SG Braunschweig"]
[Site "Brunswick"]
[Date "2019.10.26"]
[Round "9.5"]
[White "Lubbe, Melanie"]
[Black "Krasenkow, Michal"]
[Result "0-1"]
[ECO "B08"]
[WhiteElo "2242"]
[BlackElo "2622"]
[Annotator "ChessBase"]
[PlyCount "120"]
[EventDate "2019.10.21"]
[EventType "tourn"]
[EventCountry "GER"]
[SourceTitle "playchess.com"]
[Source "ChessBase"]
[SourceQuality "1"]
[TimeControl "40/5400+30:900+30"]

1. e4 {[%emt 0:00:00]} g6 {[%emt 0:00:00]} 2. d4 {[%emt 0:00:00]} Bg7 {[%emt 0:00:00]} 3. Nc3 {[%emt 0:00:00]} c6 {[%emt 0:00:00]} 4. Nf3 {[%emt 0:00:42]} d6 {[%emt 0:00:10]} 5. Be3 {[%emt 0:01:56]} Nf6 {[%emt 0:00:05]} 6. h3 {[%emt 0:01:24]} O-O {[%emt 0:00:11]} 7. Bd3 {[%emt 0:01:30]} b5 {[%emt 0:00:53]} 8. O-O {[%emt 0:04:45]} Nbd7 {[%emt 0:03:41]} 9. Qd2 {[%emt 0:00:50]} Bb7 {[%emt 0:02:34]} 10. a4 {[%emt 0:07:42]} b4 {[%emt 0:04:35]} 11. Ne2 {[%emt 0:00:14]} c5 {[%emt 0:00:13]} 12. Ng3 {[%emt 0:06:35]} a5 {[%emt 0:08:15]} 13. c3 {[%emt 0:07:32]} cxd4 {[%emt 0:14:03]} 14. cxd4 {[%emt 0:00:26]} Rc8 {[%emt 0:00:03]} 15. Rfe1 {[%emt 0:16:10]} e6 {[%emt 0:01:12]} 16. e5 {[%emt 0:11:10]} dxe5 {[%emt 0:02:08]} 17. dxe5 {[%emt 0:00:36]} Nd5 {[%emt 0:02:21]} 18. Bg5 {[%emt 0:03:29]} Qb6 {[%emt 0:05:34]} 19. Bh6 {[%emt 0:03:06]} Rfd8 {[%emt 0:07:43]} 20. Qg5 {[%emt 0:07:39]} Bh8 {[%emt 0:02:37]} 21. Ne4 {[%emt 0:06:40]} Nc5 {[%emt 0:01:15]} 22. Nxc5 {[%emt 0:00:56]} Qxc5 {[%emt 0:00:25]} 23. h4 {[%emt 0:01:22]} Nc3 {[%emt 0:13:22]} 24. Re3 {[%emt 0:02:09]} Bxf3 {[%emt 0:05:00]} 25. Rxf3 {[%emt 0:00:07]} Nd5 {[%emt 0:00:23]} 26. h5 {[%emt 0:00:59]} Ne7 {[%emt 0:01:40]} 27. Re1 {[%emt 0:02:16]} Rd5 {[%emt 0:01:22]} 28. Qf4 {[%emt 0:04:38]} Nf5 {[%emt 0:00:54]} 29. Bxf5 {[%emt 0:00:06]} exf5 {[%emt 0:00:45]} 30. e6 {[%emt 0:00:04]} Be5 {[%emt 0:04:34]} 31. exf7+ {[%emt 0:03:34]} Kxf7 {[%emt 0:00:02]} 32. Qg5 {[%emt 0:00:23]} Bxb2 {[%emt 0:04:08]} 33. Rfe3 {[%emt 0:02:38]} Bf6 {[%emt 0:00:21]} 34. Qg3 {[%emt 0:00:10]} g5 {[%emt 0:02:27]} 35. Re6 {[%emt 0:01:52]} g4 {[%emt 0:05:01]} 36. Qf4 {[%emt 0:00:54]} Rg8 {[%emt 0:03:22]} 37. Ra6 {[%emt 0:00:51]} Bc3 {[%emt 0:04:25]} 38. Rc1 {[%emt 0:02:33]} Rgd8 {[%emt 0:00:25]} 39. g3 {[%emt 0:00:55]} Rd1+ {[%emt 0:02:14]} 40. Rxd1 {[%emt 0:00:11]} Rxd1+ {[%emt 0:00:01]} 41. Kh2 {[%emt 0:15:07]} Rd7 {[%emt 0:06:57]} 42. Ra8 {[%emt 0:00:00]} Bd2 {[%emt 0:00:38]} 43. Rf8+ {[%emt 0:00:00]} Ke7 {[%emt 0:00:10]} 44. Rxf5 {[%emt 0:00:00]} Bxf4 {[%emt 0:00:16]} 45. Bf8+ {[%emt 0:00:00]} Ke6 {[%emt 0:00:05]} 46. Rxc5 {[%emt 0:00:00]} Bd6 {[%emt 0:00:19]} 47. Bxd6 {[%emt 0:00:00]} Kxd6 {[%emt 0:00:04]} 48. Rg5 {[%emt 0:00:21]} Rb7 {[%emt 0:01:08]} 49. Rxg4 {[%emt 0:00:04]} b3 {[%emt 0:00:03]} 50. Rd4+ {[%emt 0:00:11]} Kc5 {[%emt 0:00:05]} 51. Rd1 {[%emt 0:00:17]} Kb4 {[%emt 0:05:13]} 52. g4 {[%emt 0:00:15]} Kxa4 {[%emt 0:00:49]} 53. g5 {[%emt 0:01:06]} b2 {[%emt 0:00:18]} 54. Rb1 {[%emt 0:00:37]} Kb3 {[%emt 0:00:17]} 55. f4 {[%emt 0:00:41]} a4 {[%emt 0:00:03]} 56. g6 {[%emt 0:02:16]} hxg6 {[%emt 0:00:23]} 57. hxg6 {[%emt 0:00:05]} a3 {[%emt 0:00:09]} 58. f5 {[%emt 0:01:35]} a2 {[%emt 0:00:09]} 59. Rxb2+ {[%emt 0:00:11]} Kxb2 {[%emt 0:00:06]} 60. f6 {[%emt 0:00:03]} a1=Q {[%emt 0:00:09]} 0-1